Cogmind - Beta 13 @@@ ROGUE MODE // 2024.04.18 @ 16:04:35 Player: shockk Result: Destroyed by as-82481 with Assembled F-torch Performance ------------- Evolutions (0) 0 Regions Visited (3) 600 Robots Destroyed (12) 60 Value Destroyed (316) 316 Prototype IDs (0) 0 Alien Tech Used (0) 0 Bonus (300) 300 TOTAL SCORE: 1276 Bonus ------- Aligned with FarCom 300 Cogmind --------- Core Integrity 0/250 Matter 258/300 Energy 100/100 System Corruption 7% Temperature Cool (20) Movement Core (100) Ox1 Location -10/Exiles Parts ------- > --- POWER (1) -------- (None) > --- PROPULSION (2) --- (None) > --- UTILITY (2) ------ Small Storage Unit Propulsion Shielding > --- WEAPON (2) ------- (None) > --- INVENTORY (8) ---- Light Fission Core Grenade Launcher Grenade Launcher Datajack Peak State ------------ > --- POWER ------------ Light Nuclear Core > --- PROPULSION ------- Wheel Wheel > --- UTILITY ---------- Heat Sink > --- WEAPON ----------- Assault Rifle Assault Rifle > --- INVENTORY -------- Light Ion Engine Small Laser Light Assault Rifle Grenade Launcher Datajack [Rating: 8] Favorites ----------- Power Light Nuclear Core Engine Light Ion Engine Power Core Light Nuclear Core Propulsion Wheel Wheel Wheel Utility Propulsion Shielding Device Heat Sink Storage Small Storage Unit Processor Terrain Scan Processor Protection Propulsion Shielding Weapon Light Assault Rifle Energy Gun Small Laser Ballistic Gun Light Assault Rifle Build | -11 -10 -10 -10 ------- Run | Yrd Mat Min Exi Slots Evolved . | . . . . Power . | . . . . Propulsion . | . . . . Utility . | . . . . Weapon . | . . . . Parts Attached 15 | 6 8 . 1 Power 2 | 1 1 . . Engine 1 | 1 . . . Core 1 | . 1 . . Reactor . | . . . . Propulsion 3 | 2 1 . . Treads . | . . . . Leg . | . . . . Wheel 3 | 2 1 . . Hover . | . . . . Flight . | . . . . Utility 5 | 1 3 . 1 Device 1 | 1 . . . Storage 2 | . 1 . 1 Processor 1 | . 1 . . Hackware . | . . . . Protection 1 | . 1 . . Artifact . | . . . . Weapon 5 | 2 3 . . Energy Gun 1 | . 1 . . Energy Cannon . | . . . . Ballistic Gun 4 | 2 2 . . Ballistic Cannon . | . . . . Launcher . | . . . . Special Weapon . | . . . . Impact Weapon . | . . . . Slashing Weapon . | . . . . Piercing Weapon . | . . . . Special Melee Weapon . | . . . . Unidentified Prototypes . | . . . . Corrupted Parts 1 | . 1 . . System Corruption 7 | . 7 . . Parts Lost 7 | . 3 1 3 Power 1 | . . . 1 Propulsion 2 | . 2 . . Utility 1 | . . 1 . Weapon 3 | . 1 . 2 Highest Loss Streak 3 | . 3 1 3 To Critical Strikes . | . . . . Average Slot Usage (%) 67 | . 71 66 63 Engine 1 | . 2 . . Core 12 | . 11 14 14 Wheel 2 | . 6 . . Device 7 | . 14 9 . Storage 3 | . . . 6 Protection 10 | . 6 14 14 Ballistic Gun 27 | . 27 28 28 Naked Turns . | . . . . Heaviest Build 48 | 8 48 9 13 Greatest Support 20 | 20 20 3 3 Greatest Overweight (x) 15 | . 15 2 4 Average Overweight (x) 1 | . 1 2 2 Largest Inventory Capacity 20 | 5 20 5 8 Average Capacity 5 | 5 5 5 6 Most Carried 5 | 5 5 4 5 Average Carried 3 | 2 4 4 3 Final Capacity 8 | 5 5 5 8 Final Carried 4 | 4 4 4 4 Class Distribution -------------------- 94% | Mutant 5% | Scavenger-Mutant Dominant Class ---------------- Mutant | -10/Materials Mutant | -10/Mines Mutant | -10/Exiles Resources | -11 -10 -10 -10 ----------- Run | Yrd Mat Min Exi Matter Collected 555 | 262 239 54 . Remotely . | . . . . Salvage Created 405 | 50 314 41 . Parts 34 | 2 29 3 . Haulers Intercepted . | . . . . Recyclers Shooed . | . . . . Parts Field Recycled . | . . . . Retrieved Matter . | . . . . Parts Self-Destructed . | . . . . Prevented . | . . . . Kills | -11 -10 -10 -10 ------- Run | Yrd Mat Min Exi Combat Hostiles Destroyed 11 | 1 9 1 . Guns 9 | 1 7 1 . AOE 2 | . 2 . . Classes Destroyed 3 | 1 2 . . Builder 1 | . 1 . . Swarmer 4 | . 4 . . Grunt 7 | 1 5 1 . Best Kill Streak 5 | 1 5 1 . Combat Bots Only 4 | 1 4 1 . Max Kills in Single Turn 2 | 1 2 1 . Gunslinging . | . . . . Exploded 1 | . 1 . . Melee . | . . . . Uniques/NPCs Destroyed . | . . . . Combat | -11 -10 -10 -10 -------- Run | Yrd Mat Min Exi Hostile Shots Fired 85 | 2 56 8 19 Missed 24 | 1 18 1 4 Damage Taken 802 | 10 440 90 262 Core 254 | . 81 40 133 Absorbed by Shields . | . . . . Regen/Repaired (Parts) 10 | . 10 . . Core Remaining (%) 100 | 100 . . . Volleys Fired 49 | 2 43 4 . Largest 2 | 2 2 2 . Hottest 60 | 40 60 40 . Shots Fired 103 | 4 87 8 4 Gun 103 | 4 87 8 4 Cannon . | . . . . Launcher . | . . . . Special . | . . . . Kinetic 96 | 4 80 8 4 Thermal 7 | . 7 . . Explosive . | . . . . Electromagnetic . | . . . . Robot Hit Streak 4 | 3 4 2 . Robot Miss Streak 4 | . 4 2 1 Penetration Max . | . . . . Secondary Targets 1 | . 1 . . Max Gunslinging Chain 1 | . 1 . . Shots Hit Robots 43 | 3 35 5 . Core Hits 20 | 2 16 2 . Critical Kills . | . . . . Critical Parts Destroyed . | . . . . Critical Strikes . | . . . . Melee Attacks . | . . . . Impact . | . . . . Slashing . | . . . . Piercing . | . . . . Sneak Attacks . | . . . . Combat Hostiles . | . . . . Follow-up Attacks . | . . . . Damage Inflicted 619 | 40 544 35 . Guns 488 | 40 413 35 . Cannons . | . . . . Explosions 131 | . 131 . . Melee . | . . . . Ramming . | . . . . Kinetic 467 | 40 392 35 . Thermal 21 | . 21 . . Explosive . | . . . . Electromagnetic 131 | . 131 . . Impact . | . . . . Slashing . | . . . . Piercing . | . . . . Highest Corruption 7 | . 7 7 7 Average Corruption 7 | . 7 7 7 Corruption Purged . | . . . . Corruption Blocked . | . . . . Effects 57 | . 21 8 28 Message Errors 14 | . 7 2 5 Matter Fused 11 | . 4 1 6 Heat Flow Errors 4 | . 3 . 1 Energy Discharges 10 | . 3 2 5 Parts Fused 1 | . . 1 . Data Loss (minor) 9 | . 1 2 6 Data Loss (major) 1 | . 1 . . Misfires 6 | . 2 . 4 Alerts 1 | . . . 1 Overload Shots . | . . . . Overflow Damage 1 | . 1 . . Projectiles . | . . . . Explosions 1 | . 1 . . Melee . | . . . . Knockbacks . | . . . . Impact . | . . . . Kinetic . | . . . . Secondary . | . . . . Self-Inflicted Damage 58 | . 58 . . Shots 2 | . 2 . . Rammed . | . . . . Targets Rammed . | . . . . Kicked . | . . . . Crushed . | . . . . Highest Temperature 207 | . 198 14 207 Average Temperature 61 | . 70 6 81 Received Heat Transfer 282 | 6 168 48 60 Siege Activations . | . . . . Robots Corrupted . | . . . . Combat Hostiles . | . . . . Parts Fried . | . . . . Impact Corruptions . | . . . . Robots Melted . | . . . . Combat Hostiles . | . . . . Parts Melted . | . . . . Heat Transferred 50 | . 50 . . Parts Sabotaged . | . . . . Parts Stolen . | . . . . Parts Stripped . | . . . . Power Chain Reactions . | . . . . Alert | -11 -10 -10 -10 ------- Run | Yrd Mat Min Exi Peak Influence 227 | 20 227 35 . Initial 13 | . 13 . . Average 53 | 3 78 8 . Maximum Alert Level 1 | . 1 . . Low Security (%) 89 | 100 84 100 . Level 1 10 | . 15 . . Level 2 . | . . . . Level 3 . | . . . . Level 4 . | . . . . Level 5 . | . . . . High Security . | . . . . Max Security . | . . . . Squads Dispatched 1 | . 1 . . Investigation . | . . . . Extermination . | . . . . Reinforcement 1 | . 1 . . Assault . | . . . . Garrison . | . . . . Intercept . | . . . . Searches Triggered . | . . . . Construction Impeded . | . . . . Haulers Reinforced . | . . . . Active Scanning Responses . | . . . . Cargo Convoy Interrupts . | . . . . Stealth | -11 -10 -10 -10 --------- Run | Yrd Mat Min Exi Distress Signals 2 | . 2 . . Communications Jammed . | . . . . Distress Signals . | . . . . Times Spotted 31 | 1 19 2 9 Peak Tracking Total 14 | 1 6 2 14 Tactical Retreats 1 | . . 1 . Traps | -11 -10 -10 -10 ------- Run | Yrd Mat Min Exi Traps Triggered . | . . . . Indirectly . | . . . . Trap Hack Attempts . | . . . . Triggered . | . . . . Disarmed . | . . . . Reprogrammed . | . . . . Reused . | . . . . Traps Extracted . | . . . . Installed . | . . . . Triggered . | . . . . Machines | -11 -10 -10 -10 ---------- Run | Yrd Mat Min Exi Machines Disabled 2 | . 2 . . Max in Single Turn 1 | . 1 . . Machines Repaired . | . . . . Machines Dismantled . | . . . . Machines Sabotaged . | . . . . Overloaded Fab Kills . | . . . . Hacking | -11 -10 -10 -10 --------- Run | Yrd Mat Min Exi Machines Accessed 4 | . 1 . 3 Terminals . | . . . . Fabricators . | . . . . Repair Stations 1 | . 1 . . Recycling Units . | . . . . Scanalyzers . | . . . . Garrison Access . | . . . . Total Hacks 28 | . 2 . 26 Successful 28 | . 2 . 26 Failed . | . . . . Catastrophic . | . . . . Database Lockouts . | . . . . Manual . | . . . . Terminals . | . . . . Fabricators . | . . . . Repair Stations 2 | . 2 . . Recycling Units . | . . . . Scanalyzers . | . . . . Garrison Access . | . . . . Terminal Hacks 26 | . . . 26 Record 26 | . . . 26 Fabricator Hacks . | . . . . Repair Station Hacks 2 | . 2 . . Scan Component 1 | . 1 . . Repair 1 | . 1 . . Recycling Unit Hacks . | . . . . Scanalyzer . | . . . . Garrison Access Hacks . | . . . . Unauthorized Hacks . | . . . . Terminals . | . . . . Fabricators . | . . . . Repair Stations . | . . . . Recycling Units . | . . . . Scanalyzers . | . . . . Garrison Access . | . . . . Data Cores Recovered . | . . . . Used . | . . . . Hacking Detections . | . . . . Full Trace Events . | . . . . Feedback Events . | . . . . Feedback Blocked . | . . . . Robot Schematics Acquired . | . . . . Robots Built . | . . . . Authchips . | . . . . Time . | . . . . Total Robot Build Rating . | . . . . Part Schematics Acquired . | . . . . Parts Built . | . . . . Authchips . | . . . . Time . | . . . . Total Part Build Rating . | . . . . Parts Repaired 1 | . 1 . . Time 26 | . 26 . . Parts Recycled . | . . . . Recycled Matter . | . . . . Retrieved Matter . | . . . . Retrieved Components . | . . . . Parts Scanalyzed . | . . . . Part Schematics Acquired . | . . . . Parts Damaged . | . . . . Bothacking | -11 -10 -10 -10 ------------ Run | Yrd Mat Min Exi Used RIF Installer . | . . . . Robots Hacked . | . . . . Non-combat . | . . . . Combat . | . . . . Robot Hacks Applied . | . . . . Relay Couplers Released . | . . . . Fabnet Peak Effective % . | . . . . Robots Rewired . | . . . . Allies Hacked . | . . . . Hacks Repelled . | . . . . Allies | -11 -10 -10 -10 -------- Run | Yrd Mat Min Exi Total Allies . | . . . . Largest Group . | . . . . Highest-Rated Group . | . . . . Highest-Rated Ally . | . . . . Total Orders . | . . . . Ally Attacks . | . . . . Total Damage . | . . . . Kills . | . . . . Allies Corrupted . | . . . . Allies Melted . | . . . . Intel | -11 -10 -10 -10 ------- Run | Yrd Mat Min Exi Robot Analysis Total . | . . . . Derelict Logs Recovered 2 | . . 2 . Drone Launches . | . . . . Drone Recoveries . | . . . . Exploration | -11 -10 -10 -10 ------------- Run | Yrd Mat Min Exi Turns Passed 2336 | 124 866 350 996 Spaces Moved 1430 | 146 519 227 538 Core 1167 | 48 354 227 538 Treads . | . . . . Legs . | . . . . Wheels 263 | 98 165 . . Hover . | . . . . Flight . | . . . . Fastest Speed 50 | 50 80 150 100 Average Speed 149 | 70 134 150 184 Slowest Speed 800 | 80 800 150 250 Overloaded Moves . | . . . . Propulsion Burnouts . | . . . . Robots Hopped . | . . . . Cave-ins Triggered . | . . . . Exploration Rate (%) 40 | 7 32 44 78 Regions Visited 3 Branch Regions 2 Pre-discovered Areas 1 | . . 1 . Known Exits Taken . | . . . . Unknown Exits Taken 3 | 1 1 1 . Scrap Searched 2 | . . 2 . Spaces Dug . | . . . . Terrain Destroyed . | . . . . Melee . | . . . . Projectile . | . . . . AOE . | . . . . Terrain Rammed . | . . . . Walls Destroyed . | . . . . Machines Disabled . | . . . . Actions | -11 -10 -10 -10 --------- Run | Yrd Mat Min Exi Total 1551 | 163 616 230 542 Wait 21 | . 21 . . Move 1427 | 145 518 226 538 Hop . | . . . . Pick Up 26 | 10 14 . 2 Fast Attach . | . . . . Attach 13 | 6 6 . 1 Detach 2 | . 2 . . Swap 2 | . 2 . . Drop 11 | . 10 . 1 Fire 49 | 2 43 4 . Melee . | . . . . Ram . | . . . . Kick . | . . . . Crush . | . . . . Escape Stasis . | . . . . Rewire . | . . . . Trap . | . . . . Miscellaneous . | . . . . Route ------- -11/Scrapyard -10/Materials (discovered 2 exits: [*Min] / [*Sub]) -10/Mines -10/Exiles (discovered 1 exit: [*Min]) History --------- Turn | Location | Event 2 | -11/Scrapyard | Met Revision 17 98 | -11/Scrapyard | Discovered new exit (range 8) 125 | -11/Scrapyard | Entered Materials 215 | -10/Materials | Repaired Wheel 332 | -10/Materials | Build established: Mutant 371 | -10/Materials | Lost 3 parts (2n1w) 494 | -10/Materials | Discovered new exit (range 16) 831 | -10/Materials | Discovered new exit (range 14) 991 | -10/Materials | Entered Mines 1201 | -10/Mines | Learned Materials trap positions 1236 | -10/Mines | Learned location of Zion (-7) 1330 | -10/Mines | Deemed a non-threat by the Exiles lab entrance 1332 | -10/Mines | Discovered new exit (range 5) 1341 | -10/Mines | Entered Exiles 1406 | -10/Exiles | Met 8R-AWN 1452 | -10/Exiles | Met EX-HEX 1530 | -10/Exiles | Met EX-BIN 1563 | -10/Exiles | Aligned with FarCom system 1565 | -10/Exiles | Given EX-Vault access code 1766 | -10/Exiles | Met EX-DEC 1935 | -10/Exiles | Discovered new exit (range 12) 2301 | -10/Exiles | Visited The Gauntlet 2313 | -10/Exiles | Attacked by the Exiles 2331 | -10/Exiles | Core integrity fell below 50% 2337 | -10/Exiles | Core integrity fell below 20% 2337 | -10/Exiles | Destroyed by as-82481 with Assembled F-torch Last Messages --------------- flashing green ! when spotted to talk to them. System corrupted: IFF burst signal emitted. System corrupted: Component data lost. RT-Q8L(z): I was there on that fateful day we tested the Lightpack 1.0. It was such a good haul, too, only to see JA-CK9 crushed like a forgotten microchip... =ZS/H:WX4 System corrupted: Energy discharge (-43). System corrupted: Component data lost. System corrupted: Matter fused (-6). System corrupted: FCS attempts to trigger Lgt. Assault Rifle. System corrupted: Lgt. Assault Rifle misfires. EXILES: Hostile robot within lab perimeter. Defensive protocols time, folks! Lgt. Assault Rifle destroyed. Lgt. Nuclear Core destroyed. Lgt. Assault Rifle destroyed. [Achievement: First Step to Greatness] Map ----- +----------------------------------------------------+ | ??????????#" """"##??#???????###""""## | | ??????????#""" """#?????????????######? | | ??????????## ""##???????????????????? | | ???????????#"" """##????????????????????? | | ???????????##""" ##?????????????????????? | | ????????????##"""" ##??????????????????????? | | ?????????????### #???????????????????????? | | ???????????????##### ##???????????????????????? | | ???????????????????## #????????????????????????? | | ????????????????????# #????????????????????????? | | ????????????????????# #????????????????????????? | | ????????????????????# #????????????????????????? | | ????????????????????# #????????????????????????? | | ????????????????????# #????????????????????????? | | ????????????????????# #????????????????????????? | | ????????????????????# #????????????????????????? | | ????????????????????# #????????????????????????? | | ????????????????????# #????????????????????????? | | ????????????"?"###### ########??#??????????????? | | ?????????""" """"""c a"""""""#?""""????????????? | | ?????????"" a "#"" ""#???????????? | | ?????? a " ""#???????????? | | ?????? " " "#???????????? | | ??????? a " """????????????? | | ??????? "" a #"" ""#???????????? | | ????????""" " """" @"""""#?""""????????????? | | ?????????###"""########"""######??#??????????????? | | ???????????" ????????"" "??????????????????????? | | ????????????????????#"" """?????????????????????? | | ????????????????????#"""""""?????????????????????? | | ????????????????????#"" """"?????????????????????? | | ????????????????????#""""""??????????????????????? | | ??????????????????????###????????????????????????? | | ?????????????????????????????????????????????????? | | ?????????????????????????????????????????????????? | | ?????????????????????????????????????????????????? | | ?????????????????????????????????????????????????? | | | | | | | | | | | | | | | | | | | | | | | | | | | +----------------------------------------------------+ Best States ------------- Heat Dissipation 35 Energy Generation 14 Energy Capacity 160 Matter Stores 300 Matter Capacity 300 Sight Range 16 Terrain Scan Density 85 Propulsion Shielding 33 Evasion (%) 50 Item Schematics ----------------- None Robot Schematics ------------------ None Fabricated ------------ Nothing Alien Tech Used ----------------- None Achievements -------------- First Step to Greatness Librarian Part-time Mechanic Uninvited Guest Challenges ------------ None Game ------ Seed LongswordDataImmobilizer Manual? 0 Play Time 00:42:48 Cumulative 0.6 hours Start 2024.04.18 @ 11:51:34 End 2024.04.18 @ 16:04:35 Sessions 1 Manual Loads 0 Difficulty Rogue Special Mode None Game No. 1 Rogue 1 Adventurer 0 Explorer 0 Win Type - Total 0 Types 0/0/0/0/0/0/0/0/0 Lore% 4 Gallery% 1 Achievement% 1 Wizard Run 0 Options --------- Layout 1 ASCII 1 Keyboard 1 Movement Arrows Keybinds 0 Fullscreen 2 Font 32/SmallcapsGlow Map View 50x35 Zoom Use 0% Tactical HUD 0 Map Filters NONE Filters NONE Steam 1 RUN: 04e91813-63e7-4455-8e91-0568968db781